fUST/lending_fUST_20260206
["ID","MTS","AMOUNT","RATE_DAILY","PERIOD"]
[404578242,1770307851908,-2135.24,0.0005589,120]
[404578243,1770307851918,-4153.88,0.0005589,21]
[404578244,1770307852018,-377.29,0.0005589,120]
[404578245,1770307852027,-972.87,0.0005589,120]
[404578246,1770307852037,-431.08228599,0.0005589,120]
[404578247,1770307852046,-1238.57,0.0005589,120]
[404578248,1770307852055,-500.0,0.0005589,120]
[404578249,1770307852065,-500.0,0.0005589,120]
[404578250,1770307852074,-1225.5,0.0005589,120]
[404578251,1770307852084,-677.18,0.0005589,120]
[404578252,1770307852093,-500.0,0.0005589,120]
[404578253,1770307852102,-500.0,0.0005589,120]
[404578254,1770307852112,-1451.81,0.0005589,120]
[404578255,1770307852121,-500.0,0.0005589,120]
[404578256,1770307852130,-500.0,0.0005589,120]
[404578257,1770307852140,-978.18,0.0005589,2]
[404578258,1770307852150,-500.0,0.0005589,120]
[404578259,1770307852160,-500.0,0.0005589,120]
[404578260,1770307852169,-500.0,0.0005589,120]
[404578261,1770307852178,-500.0,0.0005589,120]
[404578262,1770307852187,-500.0,0.0005589,120]
[404578263,1770307852197,-2402.92,0.0005589,90]
[404578264,1770307852206,-500.0,0.0005589,120]
[404578265,1770307852218,-500.0,0.0005589,120]
[404578266,1770307852228,-203.61,0.0005589,120]
[404578267,1770307852237,-500.0,0.0005589,120]
[404578268,1770307852246,-270.13,0.0005589,120]
[404578269,1770307852256,-672.6,0.0005589,120]
[404578270,1770307852265,-600.0,0.00055973,120]
[404578271,1770307852274,-334.86,0.00056301,120]
[404578272,1770307852283,-159.0,0.000564,120]
[404578273,1770307852293,-500.0,0.00056438,120]
[404578274,1770307852301,-500.0,0.00056438,120]
[404578275,1770307852310,-500.0,0.00056438,120]
[404578276,1770307852320,-1000.0,0.00056438,2]
[404578277,1770307852329,-1963.71,0.00056438,120]
[404578278,1770307852338,-693.39,0.00056438,120]
[404578279,1770307852348,-512.19651334,0.00056438,120]
[404578280,1770307852357,-5135.65,0.00056438,120]
[404578281,1770307852366,-930.29,0.00056438,120]
[404578282,1770307852375,-500.0,0.00056438,54]
[404578283,1770307852384,-1000.0,0.00056438,120]
[404578284,1770307852394,-500.0,0.00056438,120]
[404578285,1770307852403,-500.0,0.00056438,120]
[404578286,1770307852413,-500.0,0.00056438,120]
[404578287,1770307852422,-500.0,0.00056438,120]
[404578288,1770307852431,-500.0,0.00056438,120]
[404578289,1770307852441,-500.0,0.00056438,120]
[404578290,1770307852451,-500.0,0.00056438,120]
[404578291,1770307852460,-500.0,0.00056438,120]
[404578292,1770307852475,-739.88,0.00056438,30]
[404578293,1770307852485,-500.0,0.00056438,120]
[404578294,1770307852496,-500.0,0.00056438,120]
[404578295,1770307852505,-543.17,0.00056438,120]
[404578296,1770307852515,-652.54,0.00056438,120]
[404578297,1770307852524,-767.94,0.00056438,7]
[404578298,1770307852533,-500.0,0.00056438,120]
[404578299,1770307852542,-500.0,0.00056438,120]
[404578300,1770307852552,-1521.99,0.00056438,120]
[404578301,1770307852562,-1617.62,0.00056438,120]
[404578302,1770307852571,-500.0,0.00056438,120]
[404578303,1770307852581,-500.0,0.00056438,120]
[404578304,1770307852590,-2240.01,0.00056438,120]
[404578305,1770307852599,-640.26,0.00056438,120]
[404578306,1770307852609,-569.42229263,0.00056438,120]
[404578307,1770307852619,-500.0,0.00056438,120]
[404578308,1770307852628,-500.0,0.00056438,120]
[404578309,1770307852638,-500.0,0.00056438,120]
[404578310,1770307852647,-1252.28,0.00056438,120]
[404578311,1770307852657,-597.84,0.00056438,120]
[404578312,1770307852667,-635.59,0.00056438,120]
[404578313,1770307852676,-566.35,0.00056438,120]
[404578314,1770307852686,-760.05,0.00056438,120]
[404578315,1770307852695,-573.26,0.00056438,120]
[404578316,1770307852704,-500.0,0.00056438,120]
[404578317,1770307852713,-500.0,0.00056438,120]
[404578318,1770307852727,-500.0,0.00056438,120]
[404578319,1770307852736,-500.0,0.00056438,120]
[404578320,1770307852745,-1056.54,0.00056438,120]
[404578321,1770307852755,-500.0,0.00056438,120]
[404578322,1770307852765,-1796.72,0.00056438,30]
[404578323,1770307852775,-503.39,0.00056438,14]
[404578324,1770307852785,-500.0,0.00056438,120]
[404578325,1770307852794,-47841.45,0.00056438,14]
[404578326,1770307852804,-1203.88,0.00056438,120]
[404578327,1770307852814,-556.25,0.00056438,120]
[404578328,1770307852823,-2135.24,0.00056438,120]
[404578329,1770307852833,-4153.88,0.00056438,21]
[404578330,1770307852843,-972.87,0.00056438,120]
[404578331,1770307852854,-1238.57,0.00056438,120]
[404578332,1770307852864,-500.0,0.00056438,120]
[404578333,1770307852874,-1225.5,0.00056438,120]
[404578334,1770307852883,-677.18,0.00056438,120]
[404578335,1770307852892,-500.0,0.00056438,120]
[404578336,1770307852902,-410.71479692,0.00056438,120]
[404578337,1770307852915,-1451.81,0.00056438,120]
[404578338,1770307852925,-500.0,0.00056438,120]
[404578339,1770307852934,-500.0,0.00056438,120]
[404578340,1770307852943,-978.18,0.00056438,2]
[404578341,1770307852955,-500.0,0.00056438,120]
[404578342,1770307852964,-500.0,0.00056438,120]
[404578343,1770307852980,-500.0,0.00056438,120]
[404578344,1770307852989,-500.0,0.00056438,120]
[404578345,1770307852999,-298.64691223,0.00056438,120]
[404578346,1770307853008,-2402.92,0.00056438,90]
[404578347,1770307853017,-636.76759708,0.00056438,120]
[404578348,1770307853027,-500.0,0.00056438,120]
[404578349,1770307853036,-500.0,0.00056438,120]
[404578350,1770307853046,-270.13,0.00056438,120]
[404578351,1770307853055,-672.6,0.00056438,120]
[404578352,1770307853066,-151.0,0.000566,22]
[404578353,1770307853075,-500.0,0.00056826,41]
[404578354,1770307853084,-500.0,0.00056986,120]
[404578355,1770307853094,-1963.71,0.00056986,120]
[404578356,1770307853103,-693.39,0.00056986,120]
[404578357,1770307853113,-5135.65,0.00056986,120]
[404578358,1770307853123,-930.29,0.00056986,120]
[404578359,1770307853133,-500.0,0.00056986,54]
[404578360,1770307853143,-1000.0,0.00056986,120]
[404578361,1770307853154,-500.0,0.00056986,120]
[404578362,1770307853164,-500.0,0.00056986,120]
[404578363,1770307853174,-500.0,0.00056986,120]
[404578364,1770307853183,-500.0,0.00056986,120]
[404578365,1770307853193,-500.0,0.00056986,120]
[404578366,1770307853203,-500.0,0.00056986,120]
[404578367,1770307853213,-610.48273823,0.00056986,120]
[404578368,1770307853227,-500.0,0.00056986,120]
[404578369,1770307853237,-739.88,0.00056986,30]
[404578370,1770307853247,-500.0,0.00056986,120]
[404578371,1770307853257,-500.0,0.00056986,120]
[404578372,1770307853267,-543.17,0.00056986,120]
[404578373,1770307853277,-652.54,0.00056986,120]
[404578374,1770307853286,-767.94,0.00056986,7]
[404578375,1770307853295,-500.0,0.00056986,120]
[404578376,1770307853305,-500.0,0.00056986,120]
[404578377,1770307853315,-1521.99,0.00056986,120]
[404578378,1770307853325,-1617.62,0.00056986,120]
[404578379,1770307853335,-500.0,0.00056986,120]
[404578380,1770307853344,-515.45703989,0.00056986,120]
[404578381,1770307853354,-2240.01,0.00056986,120]
[404578382,1770307853363,-640.26,0.00056986,120]
[404578383,1770307853372,-334.86,0.00056986,120]
[404578384,1770307853382,-500.29392046,0.00056986,120]
[404578385,1770307853391,-500.0,0.00056986,120]
[404578386,1770307853402,-500.0,0.00056986,120]
[404578387,1770307853411,-1252.28,0.00056986,120]
[404578388,1770307853421,-597.84,0.00056986,120]
[404578389,1770307853431,-635.59,0.00056986,120]
[404578390,1770307853441,-566.35,0.00056986,120]
[404578391,1770307853450,-760.05,0.00056986,120]
[404578392,1770307853460,-573.26,0.00056986,120]
[404578393,1770307853473,-500.0,0.00056986,120]
[404578394,1770307853483,-500.0,0.00056986,120]
[404578395,1770307853492,-1056.54,0.00056986,120]
[404578396,1770307853502,-500.0,0.00056986,120]
[404578397,1770307853512,-1796.72,0.00056986,30]
[404578398,1770307853521,-503.39,0.00056986,14]
[404578399,1770307853531,-500.0,0.00056986,120]
[404578400,1770307853541,-47841.45,0.00056986,14]
[404578401,1770307853551,-1203.88,0.00056986,120]
[404578402,1770307853561,-556.25,0.00056986,120]
[404578403,1770307853571,-2135.24,0.00056986,120]
[404578404,1770307853581,-4153.88,0.00056986,21]
[404578405,1770307853591,-972.87,0.00056986,120]
[404578406,1770307853600,-1238.57,0.00056986,120]
[404578407,1770307853610,-500.0,0.00056986,120]
[404578408,1770307853620,-1225.5,0.00056986,120]
[404578409,1770307853630,-677.18,0.00056986,120]
[404578410,1770307853641,-500.0,0.00056986,120]
[404578411,1770307853651,-1451.81,0.00056986,120]
[404578412,1770307853661,-199.04154737,0.00056986,120]
[404578413,1770307853671,-500.0,0.00056986,120]
[404578414,1770307853681,-978.18,0.00056986,2]
[404578415,1770307853691,-500.0,0.00056986,120]
[404578416,1770307853700,-504.52451878,0.00056986,120]
[404578417,1770307853710,-500.0,0.00056986,120]
[404578418,1770307853724,-500.0,0.00056986,120]
[404578419,1770307853735,-2402.92,0.00056986,90]
[404578420,1770307853744,-266.5921342,0.00056986,120]
[404578421,1770307853754,-500.0,0.00056986,120]
[404578422,1770307853764,-270.13,0.00056986,120]
[404578423,1770307853774,-672.6,0.00056986,120]
[404578424,1770307853784,-1468.4,0.00057,2]
[404578425,1770307853793,-10660.02388174,0.00057434,2]
[404578426,1770307853803,-500.0,0.00057534,120]
[404578427,1770307853812,-1963.71,0.00057534,120]
[404578428,1770307853821,-693.39,0.00057534,120]
[404578429,1770307853831,-5135.65,0.00057534,120]
[404578430,1770307853840,-930.29,0.00057534,120]
[404578431,1770307853850,-500.0,0.00057534,54]
[404578432,1770307853859,-218.62902907,0.00057534,120]
[404578433,1770307853869,-500.0,0.00057534,120]
[404578434,1770307853878,-500.0,0.00057534,120]
[404578435,1770307853888,-500.0,0.00057534,120]
[404578436,1770307853989,-500.0,0.00057534,120]
[404578437,1770307854000,-519.4407474,0.00057534,120]
[404578438,1770307854011,-500.0,0.00057534,120]
[404578439,1770307854021,-500.0,0.00057534,120]
[404578440,1770307854030,-739.88,0.00057534,30]
[404578441,1770307854041,-500.0,0.00057534,120]
[404578442,1770307854050,-500.0,0.00057534,120]
[404578443,1770307854060,-543.17,0.00057534,120]
[404578444,1770307854070,-652.54,0.00057534,120]
[404578445,1770307854079,-767.94,0.00057534,7]
[404578446,1770307854089,-500.0,0.00057534,120]
[404578447,1770307854099,-500.0,0.00057534,120]
[404578448,1770307854108,-1521.99,0.00057534,120]
[404578449,1770307854118,-1617.62,0.00057534,120]
[404578450,1770307854128,-500.0,0.00057534,120]
[404578451,1770307854138,-2240.01,0.00057534,120]
[404578452,1770307854147,-640.26,0.00057534,120]
[404578453,1770307854157,-500.0,0.00057534,120]
[404578454,1770307854167,-500.0,0.00057534,120]
[404578455,1770307854178,-1252.28,0.00057534,120]
[404578456,1770307854187,-597.84,0.00057534,120]
[404578457,1770307854197,-635.59,0.00057534,120]
[404578458,1770307854207,-566.35,0.00057534,120]
[404578459,1770307854216,-760.05,0.00057534,120]
[404578460,1770307854229,-573.26,0.00057534,120]
[404578461,1770307854238,-500.0,0.00057534,120]
[404578462,1770307854248,-452.00562925,0.00057534,120]
[404578463,1770307854257,-1056.54,0.00057534,120]
[404578464,1770307854267,-500.0,0.00057534,120]
[404578465,1770307854277,-1796.72,0.00057534,30]
[404578466,1770307854287,-503.39,0.00057534,14]
[404578467,1770307854296,-500.0,0.00057534,120]
[404578468,1770307854305,-47841.45,0.00057534,14]
[404578469,1770307854315,-1203.88,0.00057534,120]
[404578470,1770307854324,-556.25,0.00057534,120]
[404578471,1770307854334,-2135.24,0.00057534,120]
[404578472,1770307854343,-4153.88,0.00057534,21]
[404578473,1770307854352,-972.87,0.00057534,120]
[404578474,1770307854363,-1238.57,0.00057534,120]
[404578475,1770307854372,-500.0,0.00057534,120]
[404578476,1770307854382,-1225.5,0.00057534,120]
[404578477,1770307854392,-677.18,0.00057534,120]
[404578478,1770307854401,-500.0,0.00057534,120]
[404578479,1770307854411,-1451.81,0.00057534,120]
[404578480,1770307854420,-500.0,0.00057534,120]
[404578481,1770307854430,-978.18,0.00057534,2]
[404578482,1770307854439,-500.0,0.00057534,120]
[404578483,1770307854449,-500.0,0.00057534,120]
[404578484,1770307854459,-500.0,0.00057534,120]
[404578485,1770307854470,-2402.92,0.00057534,90]
[404578486,1770307854480,-500.0,0.00057534,120]
[404578487,1770307854490,-270.13,0.00057534,120]
[404578488,1770307854499,-672.6,0.00057534,120]
[404578489,1770307854509,-334.86,0.00057671,120]
[404578490,1770307854519,-500.0,0.00057711,120]
[404578491,1770307854529,-800.0,0.00057792,60]
[404578492,1770307854539,-632.0,0.00057865,120]
[404578493,1770307854548,-2157.0,0.00057865,120]
[404578494,1770307854558,-420.0,0.00057865,2]
[404578495,1770307854567,-420.0,0.00057865,120]
[404578496,1770307854578,-719.0,0.00057865,2]
[404578497,1770307854587,-179.0,0.00057865,120]
[404578498,1770307854597,-159.0,0.000579,120]
[404578499,1770307854607,-245.38243453,0.00057982,2]
[404578500,1770307854625,-499999.0,0.00058,90]
[404578501,1770307854634,-500.0,0.00058082,120]
[404578502,1770307854644,-1963.71,0.00058082,120]
[404578503,1770307854654,-693.39,0.00058082,120]
[404578504,1770307854663,-5135.65,0.00058082,120]
[404578505,1770307854673,-930.29,0.00058082,120]
[404578506,1770307854682,-500.0,0.00058082,54]
[404578507,1770307854693,-500.0,0.00058082,120]
[404578508,1770307854702,-500.0,0.00058082,120]
[404578509,1770307854711,-500.0,0.00058082,120]
[404578510,1770307854723,-500.0,0.00058082,120]
[404578511,1770307854732,-500.0,0.00058082,120]
[404578512,1770307854742,-500.0,0.00058082,120]
[404578513,1770307854751,-739.88,0.00058082,30]
[404578514,1770307854761,-500.0,0.00058082,120]
[404578515,1770307854771,-500.0,0.00058082,120]
[404578516,1770307854781,-543.17,0.00058082,120]
[404578517,1770307854791,-652.54,0.00058082,120]
[404578518,1770307854801,-767.94,0.00058082,7]
[404578519,1770307854810,-500.0,0.00058082,120]
[404578520,1770307854820,-1521.99,0.00058082,120]
[404578521,1770307854829,-1617.62,0.00058082,120]
[404578522,1770307854839,-500.0,0.00058082,120]
[404578523,1770307854849,-2240.01,0.00058082,120]
[404578524,1770307854858,-640.26,0.00058082,120]
[404578525,1770307854868,-500.0,0.00058082,120]
[404578526,1770307854877,-500.0,0.00058082,120]
[404578527,1770307854887,-1252.28,0.00058082,120]
[404578528,1770307854896,-597.84,0.00058082,120]
[404578529,1770307854908,-635.59,0.00058082,120]
[404578530,1770307854918,-566.35,0.00058082,120]
[404578531,1770307854927,-760.05,0.00058082,120]
[404578532,1770307854936,-573.26,0.00058082,120]
[404578533,1770307854946,-500.0,0.00058082,120]
[404578534,1770307854955,-1056.54,0.00058082,120]
[404578535,1770307854966,-500.0,0.00058082,120]
[404578536,1770307854981,-1796.72,0.00058082,30]
[404578537,1770307854990,-503.39,0.00058082,14]
[404578538,1770307855000,-500.0,0.00058082,120]
[404578539,1770307855010,-47841.45,0.00058082,14]
[404578540,1770307855019,-1203.88,0.00058082,120]
[404578541,1770307855029,-556.25,0.00058082,120]
[404578542,1770307855039,-2135.24,0.00058082,120]
[404578543,1770307855049,-4153.88,0.00058082,21]
[404578544,1770307855059,-972.87,0.00058082,120]
[404578545,1770307855069,-1238.57,0.00058082,120]
[404578546,1770307855079,-500.0715,0.00058082,120]
[404578547,1770307855089,-1225.5,0.00058082,120]
[404578548,1770307855098,-677.18,0.00058082,120]
[404578549,1770307855108,-500.0,0.00058082,120]
[404578550,1770307855117,-1451.81,0.00058082,120]
[404578551,1770307855127,-500.0,0.00058082,120]
[404578552,1770307855136,-978.18,0.00058082,2]
[404578553,1770307855147,-626.54597403,0.00058082,120]
[404578554,1770307855156,-500.0,0.00058082,120]
[404578555,1770307855166,-500.0,0.00058082,120]
[404578556,1770307855176,-2402.92,0.00058082,90]
[404578557,1770307855185,-500.0,0.00058082,120]
[404578558,1770307855195,-270.13,0.00058082,120]
[404578559,1770307855205,-672.6,0.00058082,120]
[404578560,1770307855214,-334.86,0.00058356,120]
[404578561,1770307855226,-600.0,0.0005855,120]
[404578562,1770307855236,-192.74033012,0.00058597,60]
[404578563,1770307855245,-500.0,0.0005863,120]
[404578564,1770307855254,-1963.71,0.0005863,120]
[404578565,1770307855264,-693.39,0.0005863,120]
[404578566,1770307855274,-5135.65,0.0005863,120]
[404578567,1770307855283,-930.29,0.0005863,120]
[404578568,1770307855292,-500.0,0.0005863,120]
[404578569,1770307855303,-500.0,0.0005863,120]
[404578570,1770307855315,-500.0,0.0005863,120]
[404578571,1770307855324,-500.0,0.0005863,120]
[404578572,1770307855334,-500.0,0.0005863,120]
[404578573,1770307855343,-739.88,0.0005863,30]
[404578574,1770307855353,-500.0,0.0005863,120]
[404578575,1770307855367,-500.0,0.0005863,120]
[404578576,1770307855378,-543.17,0.0005863,120]
[404578577,1770307855389,-652.54,0.0005863,120]
[404578578,1770307855400,-767.94,0.0005863,7]
[404578579,1770307855409,-500.0,0.0005863,120]
[404578580,1770307855418,-1521.99,0.0005863,120]
[404578581,1770307855427,-1617.62,0.0005863,120]
[404578582,1770307855436,-500.0,0.0005863,120]
[404578583,1770307855445,-2240.01,0.0005863,120]
[404578584,1770307855455,-640.26,0.0005863,120]
[404578585,1770307855464,-500.0,0.0005863,120]
[404578586,1770307855477,-500.0,0.0005863,120]
[404578587,1770307855487,-1252.28,0.0005863,120]
[404578588,1770307855497,-597.84,0.0005863,120]
[404578589,1770307855507,-635.59,0.0005863,120]
[404578590,1770307855518,-566.35,0.0005863,120]
[404578591,1770307855527,-760.05,0.0005863,120]
[404578592,1770307855538,-573.26,0.0005863,120]
[404578593,1770307855547,-500.0,0.0005863,120]
[404578594,1770307855556,-1056.54,0.0005863,120]
[404578595,1770307855566,-500.0,0.0005863,120]
[404578596,1770307855576,-1796.72,0.0005863,30]
[404578597,1770307855585,-503.39,0.0005863,14]
[404578598,1770307855595,-500.0,0.0005863,120]
[404578599,1770307855605,-47841.45,0.0005863,14]
[404578600,1770307855615,-1203.88,0.0005863,120]
[404578601,1770307855625,-556.25,0.0005863,120]
[404578602,1770307855635,-2135.24,0.0005863,120]
[404578603,1770307855644,-4153.88,0.0005863,21]
[404578604,1770307855654,-972.87,0.0005863,120]
[404578605,1770307855664,-1238.57,0.0005863,120]
[404578606,1770307855674,-1225.5,0.0005863,120]
[404578607,1770307855684,-677.18,0.0005863,120]
[404578608,1770307855694,-500.0,0.0005863,120]
[404578609,1770307855704,-312.86964409,0.0005863,120]
[404578610,1770307855730,-257.08159235,0.0005863,120]
[404578611,1770307855891,-500.0,0.00038004,2]
[404578612,1770307855906,-500.0,0.00038004,2]
[404578613,1770307855916,-881.85876356,0.0005863,120]
[404578614,1770307855925,-500.0,0.0005863,120]
[404578615,1770307855935,-978.18,0.0005863,2]
[404578616,1770307855946,-180.21275752,0.0005863,120]
[404578617,1770307855956,-500.0,0.0005863,120]
[404578618,1770307855966,-909.42716615,0.0005863,90]
[404578619,1770307855989,-1493.49283385,0.0005863,90]
[404578620,1770307855999,-500.0,0.0005863,120]
[404578621,1770307856009,-270.13,0.0005863,120]
[404578622,1770307856019,-672.6,0.0005863,120]
[404578623,1770307856029,-150.334,0.00058962,120]
[404578624,1770307856039,-150.0,0.00058962,120]
[404578625,1770307856048,-233.125,0.00058962,120]
[404578626,1770307856058,-249.07,0.00058962,120]
[404578627,1770307856067,-268.359,0.00058962,120]
[404578628,1770307856077,-334.86,0.00059041,120]
[404578629,1770307856087,-1468.4,0.000591,2]
[404578630,1770307856097,-500.0,0.00059178,120]
[404578631,1770307856106,-1963.71,0.00059178,120]
[404578632,1770307856116,-693.39,0.00059178,120]
[404578633,1770307856125,-2541.21785405,0.00059178,120]
[404578634,1770307856137,-2594.43214595,0.00059178,120]
[404578635,1770307856147,-930.29,0.00059178,120]
[404578636,1770307856156,-500.0,0.00059178,120]
[404578637,1770307856166,-500.0,0.00059178,120]
[404578638,1770307856176,-500.0,0.00059178,120]
[404578639,1770307856185,-500.0,0.00059178,120]
[404578640,1770307856195,-500.0,0.00059178,120]
[404578641,1770307856205,-739.88,0.00059178,30]
[404578642,1770307856214,-500.0,0.00059178,120]
[404578643,1770307856227,-500.0,0.00059178,120]
[404578644,1770307856237,-543.17,0.00059178,120]
[404578645,1770307856246,-652.54,0.00059178,120]
[404578646,1770307856255,-767.94,0.00059178,7]
[404578647,1770307856265,-500.0,0.00059178,120]
[404578648,1770307856275,-1521.99,0.00059178,120]
[404578649,1770307856284,-1617.62,0.00059178,120]
[404578650,1770307856294,-500.0,0.00059178,120]
[404578651,1770307856303,-2240.01,0.00059178,120]
[404578652,1770307856313,-640.26,0.00059178,120]
[404578653,1770307856323,-500.0,0.00059178,120]
[404578654,1770307856333,-500.0,0.00059178,120]
[404578655,1770307856343,-1252.28,0.00059178,120]
[404578656,1770307856352,-597.84,0.00059178,120]
[404578657,1770307856361,-635.59,0.00059178,120]
[404578658,1770307856370,-566.35,0.00059178,120]
[404578659,1770307856380,-760.05,0.00059178,120]
[404578660,1770307856390,-573.26,0.00059178,120]
[404578661,1770307856400,-500.0,0.00059178,120]
[404578662,1770307856410,-1056.54,0.00059178,120]
[404578663,1770307856420,-184.95785405,0.00059178,120]
[404578664,1770307856662,-4562.08461053,0.00037994,10]
[404578665,1770307856674,-2144.53739738,0.00037994,10]
[404578666,1770307856686,-567.6937,0.00037994,10]
[404578667,1770307856698,-596.16442264,0.00037994,10]
[404578668,1770307856709,-300.0,0.00037994,10]
[404578669,1770307856775,-285.65430126,0.00024953,2]
[404578670,1770307856784,-831.52769874,0.00037994,10]
[404578671,1770307856796,-640.47494569,0.00037994,10]
[404578672,1770307856809,-1213.05722502,0.00037994,10]
[404578673,1770307856819,-500.0,0.00038004,2]
[404578674,1770307856828,-542.91668735,0.00038004,2]
[404578675,1770307856838,-500.0,0.00054794,120]
[404578676,1770307856848,-5756.02608763,0.00058,90]
[404578677,1770307857041,-13436.5563544,0.00058,90]
[404578678,1770307863502,581.42006378,0.00013273,2]
[404578681,1770307927873,500.0,0.00013699,2]
[404578687,1770308047716,500.0,0.00013699,2]
[404578694,1770308168560,500.0,0.00013699,2]
[404578696,1770308218911,-2966.50313135,0.00014027,2]
[404578697,1770308218937,-293.98046032,0.00014027,2]
[404578698,1770308218964,-150.0,0.00014059,2]
[404578699,1770308218992,-517.86614665,0.00014091,2]
[404578700,1770308219031,-500.0,0.00014091,2]
[404578701,1770308219058,-500.0,0.00014091,2]
[404578702,1770308219222,-500.0,0.00014091,2]
[404578703,1770308219251,-500.0,0.00014091,2]
[404578704,1770308219284,-500.0,0.00014091,2]
[404578705,1770308219310,-216.85945079,0.00014091,2]
[404578706,1770308219339,-329.82948513,0.00014091,2]
[404578707,1770308219366,-500.0,0.00014091,2]
[404578708,1770308219393,-500.0,0.00014091,2]
[404578709,1770308219419,-500.0,0.00014091,2]
[404578710,1770308219444,-500.0,0.00014091,2]
[404578711,1770308219474,-500.0,0.00014091,2]
[404578712,1770308219508,-500.0,0.00014091,2]
[404578713,1770308219543,-500.0,0.00014091,2]
[404578714,1770308219572,-500.0,0.00014091,2]
[404578715,1770308219597,-190.07516203,0.00014091,2]
[404578716,1770308219626,-500.0,0.00014091,2]
[404578717,1770308219656,-500.0,0.00014091,2]
[404578718,1770308219684,-500.0,0.00014091,2]
[404578719,1770308219711,-500.0,0.00014091,2]
[404578720,1770308219739,-500.0,0.00014091,2]
[404578721,1770308219766,-500.0,0.00014091,2]
[404578722,1770308219799,-500.0,0.00014091,2]
[404578723,1770308219827,-500.0,0.00014091,2]
[404578724,1770308219855,-500.0,0.00014091,2]
[404578725,1770308219883,-500.0,0.00014091,2]
[404578726,1770308219910,-500.0,0.00014091,2]
[404578727,1770308219937,-500.0,0.00014091,2]
[404578728,1770308219962,-500.0,0.00014091,2]
[404578729,1770308219989,-500.0,0.00014091,2]
[404578730,1770308220019,-500.0,0.00014091,2]
[404578731,1770308220054,-500.0,0.00014091,2]
[404578732,1770308220086,-500.0,0.00014091,2]
[404578733,1770308220115,-500.0,0.00014091,2]
[404578734,1770308220143,-500.0,0.00014091,2]
[404578735,1770308220171,-500.0,0.00014091,2]
[404578736,1770308220200,-500.0,0.00014091,2]
[404578737,1770308220229,-500.0,0.00014091,2]
[404578738,1770308220255,-500.0,0.00014091,2]
[404578739,1770308220290,-500.0,0.00014091,2]
[404578740,1770308220317,-500.0,0.00014091,2]
[404578741,1770308220347,-500.0,0.00014091,2]
[404578742,1770308220374,-500.0,0.00014091,2]
[404578743,1770308220403,-334.88616373,0.00014091,2]
[404578744,1770308220500,-165.11383627,0.00014091,2]
[404578745,1770308220534,-500.0,0.00014091,2]
[404578746,1770308220561,-500.0,0.00014091,2]
[404578747,1770308220589,-500.0,0.00014091,2]
[404578748,1770308220619,-500.0,0.00014091,2]
[404578749,1770308220649,-515.43748971,0.00014091,2]
[404578750,1770308220678,-500.0,0.00014091,2]
[404578751,1770308220706,-500.0,0.00014091,2]
[404578752,1770308220733,-500.0,0.00014091,2]
[404578753,1770308220761,-500.0,0.00014091,2]
[404578754,1770308220793,-197.27239564,0.00014091,2]
[404578755,1770308220820,-500.0,0.00014091,2]